bitfinex-derivatives/quotes_SOLF0:USTF0_20250114
["timestamp","ask_amount","ask_price","bid_price","bid_amount"]
[1736888570629,18.14,187.08,187.02,7.91262088]
[1736888570823,9.9795,187.08,187.06,7.91262088]
[1736888571325,9.9795,187.08,187.07,2.6739]
[1736888573130,9.9795,187.08,187.04,7.91262088]
[1736888573330,9.9795,187.08,187.06,2.6741]
[1736888574035,12.6533,187.08,187.04,2.6743]
[1736888574236,9.9795,187.08,187.02,7.91262088]
[1736888574838,7.91262088,187.05,186.96,4.7128]
[1736888575141,7.91262088,187.05,186.99,7.91262088]
[1736888575436,7.91262088,187.05,187.02,2.6746]
[1736888576240,7.91262088,187.05,187.0,7.91262088]
[1736888576442,7.91262088,187.05,187.03,2.6744]
[1736888576739,7.91262088,187.07,187.02,7.91262088]
[1736888577846,9.9795,187.08,187.03,2.6744]
[1736888578048,9.9795,187.08,187.02,7.91262088]
[1736888579550,9.9795,187.08,187.05,2.6741]
[1736888580446,9.9795,187.08,187.07,2.6739]
[1736888580647,0.0001,187.09,187.07,7.91262088]
[1736888581251,7.91262088,187.16,187.07,7.91262088]
[1736888581553,7.91262088,187.16,187.11,7.91262088]
[1736888582051,8.33262088,187.16,187.11,7.91262088]
[1736888582441,16.67262088,187.16,187.11,7.91262088]
[1736888582953,16.67262088,187.16,187.13,2.673]
[1736888583153,19.34532088,187.16,187.13,2.673]
[1736888583452,11.4327,187.16,187.13,2.673]
[1736888583850,2.6728,187.15,187.08,12.34387789]
[1736888584543,2.6728,187.15,187.11,2.6733]
[1736888584746,8.76,187.16,187.08,12.34387789]
[1736888587048,2.673,187.14,187.1,2.6734]
[1736888587749,2.673,187.14,187.11,2.6734]
[1736888587954,2.6728,187.15,187.11,2.6734]
[1736888588155,8.76,187.16,187.05,13.92677789]
[1736888588856,8.76,187.16,187.12,2.6732]
[1736888589249,8.76,187.16,187.14,2.6729]
[1736888589745,8.76,187.16,187.05,13.92677789]
[1736888589951,8.76,187.16,187.14,2.6729]
[1736888598555,8.76,187.16,187.08,12.34387789]
[1736888598758,8.76,187.16,187.15,2.6728]
[1736888602361,8.76,187.16,187.14,2.6729]
[1736888603763,8.76,187.16,187.08,12.34387789]
[1736888603965,8.76,187.16,187.13,2.673]
[1736888605464,7.90113527,187.14,187.11,2.6733]
[1736888606659,7.90113527,187.12,187.08,2.6737]
[1736888606860,7.90113527,187.12,187.05,9.48403527]
[1736888607055,7.90113527,187.1,187.03,9.57133527]
[1736888607259,7.90113527,187.1,187.07,2.6738]
[1736888607662,7.90113527,187.1,187.03,7.90113527]
[1736888609066,7.90113527,187.1,187.08,2.6738]
[1736888611268,8.32113527,187.1,187.08,2.6738]
[1736888612269,10.99463527,187.1,187.06,2.6741]
[1736888612465,7.90113527,187.07,187.01,14.44629831]
[1736888612867,10.57513527,187.07,187.04,2.6743]
[1736888613669,2.6742,187.06,187.01,7.90113527]
[1736888613969,7.90113527,187.07,187.01,7.90113527]
[1736888615170,10.57513527,187.07,187.03,2.6745]
[1736888615372,7.90113527,187.07,187.01,7.90113527]
[1736888616569,7.90113527,187.07,187.02,2.6745]
[1736888616770,7.90113527,187.07,187.01,7.90113527]
[1736888617471,7.90113527,187.07,187.02,2.6745]
[1736888617671,7.90113527,187.07,187.01,7.90113527]
[1736888618668,7.90113527,187.07,187.04,2.6743]
[1736888619271,10.57513527,187.07,187.04,2.6743]
[1736888619472,10.57513527,187.07,187.01,7.90113527]
[1736888619673,10.57513527,187.07,187.03,2.6744]
[1736888620773,10.57543527,187.05,187.01,2.6748]
[1736888620977,7.90113527,187.05,186.99,7.90113527]
[1736888621773,7.90113527,187.05,187.01,2.6748]
[1736888621774,10.57543527,187.05,187.01,2.6748]
[1736888624674,7.90113527,187.05,187.01,2.6748]
[1736888624978,2.6744,187.04,187.01,2.6748]
[1736888625273,7.90113527,187.05,187.01,2.6748]
[1736888625479,10.57543527,187.05,187.01,2.6748]
[1736888626977,10.57573527,187.03,186.99,2.675]
[1736888627478,7.90113527,187.01,186.99,2.675]
[1736888627681,7.90113527,187.01,187.0,2.675]
[1736888628580,10.99573527,187.03,187.0,2.675]
[1736888629082,20.84573527,187.03,187.0,2.675]
[1736888629380,10.27,187.03,186.99,7.90113527]
[1736888629983,10.27,187.03,187.01,2.6747]
[1736888630781,9.85,187.03,187.01,2.6747]
[1736888632178,10.27,187.03,187.01,2.6747]
[1736888633277,10.27,187.03,186.99,7.90113527]
[1736888633483,10.27,187.03,187.02,2.6747]
[1736888635082,10.27,187.03,187.01,2.6748]
[1736888636880,10.27,187.03,186.99,7.90113527]
[1736888637075,10.27,187.03,187.0,2.6749]
[1736888638382,10.27,187.03,187.01,2.6748]
[1736888638582,10.27,187.03,187.01,7.90113527]
[1736888638986,10.27,187.03,186.99,7.90113527]
[1736888639384,10.27,187.03,187.0,2.6749]
[1736888640487,10.27,187.03,187.01,2.6748]
[1736888640993,10.27,187.03,187.02,2.6747]
[1736888643287,5.54,187.1,187.01,7.90113527]
[1736888643488,9.59453527,187.12,187.09,2.6737]
[1736888643692,9.59453527,187.12,187.06,7.90113527]
[1736888643693,10.57443527,187.12,187.06,7.90113527]
[1736888643895,7.90113527,187.1,187.05,2.6741]
[1736888644197,7.90113527,187.1,187.04,7.90113527]
[1736888644389,14.58113527,187.1,187.04,7.90113527]
[1736888644893,17.25473527,187.1,187.06,2.6741]
[1736888649096,17.25473527,187.1,187.07,2.6739]
[1736888649297,17.25473527,187.1,187.04,7.90113527]
[1736888649797,17.25473527,187.1,187.06,2.674]
[1736888650704,17.25473527,187.1,187.07,2.6739]
[1736888650999,14.58113527,187.1,187.07,2.6739]
[1736888651300,14.58113527,187.1,187.04,7.90113527]
[1736888651600,17.25473527,187.1,187.06,2.674]
[1736888652897,14.58113527,187.1,187.04,7.90113527]
[1736888653100,196.5751,187.13,187.0,1.611]
[1736888653101,10.24864957,187.14,187.08,7.90113527]
[1736888653303,7.90113527,187.18,187.12,7.90113527]
[1736888653499,7.90113527,187.16,187.09,7.90113527]
[1736888653996,7.90113527,187.14,187.11,2.6733]
[1736888654197,7.90113527,187.14,187.07,7.90113527]
[1736888654499,7.90113527,187.12,187.07,7.90113527]
[1736888654999,17.43113527,187.14,187.07,7.90113527]
[1736888657203,17.43113527,187.14,187.11,2.6733]
[1736888657498,9.53,187.14,187.09,7.90113527]
[1736888657699,9.53,187.14,187.13,2.6731]
[1736888658800,1.412,187.14,187.13,10.57423527]
[1736888659002,7.90113527,187.22,187.15,2.6727]
[1736888659304,7.90113527,187.22,187.16,7.90113527]
[1736888660107,7.90113527,187.22,187.2,2.672]
[1736888660304,14.50113527,187.22,187.2,2.672]
[1736888660706,14.50113527,187.22,187.21,2.6719]
[1736888661505,6.6,187.22,187.21,2.6719]
[1736888666606,12.75943527,187.36,187.28,7.90113527]
[1736888666912,1.6265,187.36,187.32,7.90113527]
[1736888667211,17.39652011,187.37,187.32,7.90113527]
[1736888667406,14.72672011,187.37,187.32,7.90113527]
[1736888667706,15.87672011,187.37,187.32,7.90113527]
[1736888668105,18.54642011,187.37,187.32,10.57143527]
[1736888668712,15.87672011,187.37,187.33,2.6702]
[1736888668907,15.87672011,187.37,187.34,7.90113527]
[1736888669210,1.15,187.37,187.36,10.57093527]
[1736888670614,1.15,187.37,187.36,2.6698]
[1736888670909,1.15,187.37,187.34,2.67]
[1736888671110,1.15,187.37,187.29,3.2452]
[1736888671412,1.15,187.37,187.32,2.6703]
[1736888672112,3.8198,187.37,187.32,2.6703]
[1736888672914,2.6698,187.36,187.31,2.6705]
[1736888673415,1.15,187.37,187.29,15.5623594]
[1736888673615,1.15,187.37,187.32,12.3171594]
[1736888674615,1.15,187.37,187.35,12.3171594]
[1736888675617,1.15,187.37,187.36,2.6698]
[1736888675918,1.5952,187.46,187.35,12.3171594]
[1736888676109,2.6683,187.47,187.41,2.6691]
[1736888676303,17.8371594,187.48,187.41,2.6691]
[1736888676711,5.8608,187.49,187.38,12.3171594]
[1736888676912,5.52,187.53,187.41,12.3171594]
[1736888677310,2.6677,187.51,187.46,2.6683]
[1736888677514,17.8371594,187.54,187.44,12.3171594]
[1736888677812,2.6676,187.52,187.47,2.6682]
[1736888678019,17.8371594,187.54,187.47,2.6682]
[1736888678314,17.8371594,187.54,187.44,12.3171594]
[1736888678518,2.6678,187.51,187.45,2.6685]
[1736888678814,12.3171594,187.54,187.44,12.3171594]
[1736888679118,195.0,187.56,187.47,12.3171594]
[1736888679415,14.9840594,187.57,187.5,2.6678]
[1736888679614,12.3171594,187.57,187.47,12.3171594]
[1736888680310,12.3171594,187.57,187.45,3.318]
[1736888680311,17.8371594,187.57,187.45,3.318]
[1736888680912,17.8371594,187.57,187.44,12.3171594]
[1736888681112,2.6679,187.5,187.45,2.6684]
[1736888681315,12.3171594,187.54,187.41,12.3171594]
[1736888681614,2.6671,187.55,187.5,2.6677]
[1736888682909,2.6673,187.54,187.49,2.6679]
[1736888684112,17.8371594,187.57,187.48,2.6681]
[1736888684316,12.3171594,187.54,187.41,12.3171594]
[1736888684616,2.6679,187.5,187.45,2.6685]
[1736888685012,12.3171594,187.51,187.41,12.3171594]
[1736888685209,2.6681,187.49,187.44,2.6686]
[1736888685710,2.6681,187.49,187.41,12.3171594]
[1736888685711,2.6681,187.48,187.43,2.6688]
[1736888685915,5.52,187.5,187.39,3.335]
[1736888686317,12.3171594,187.48,187.37,96.00647863]
[1736888686707,12.3171594,187.45,187.37,96.00647863]
[1736888686906,12.3171594,187.45,187.33,1.6866]
[1736888687118,4.8703,187.44,187.33,1.6866]
[1736888687317,2.6695,187.39,187.34,2.6701]
[1736888687517,12.3171594,187.42,187.32,12.3171594]
[1736888687917,2.6693,187.4,187.35,2.6699]
[1736888688721,2.6694,187.39,187.34,2.67]
[1736888690915,12.3171594,187.42,187.33,2.6702]
[1736888690916,2.6695,187.38,187.33,2.6702]
[1736888692118,2.6698,187.37,187.31,2.6704]
[1736888692316,2.6698,187.37,187.3,1.6667]
[1736888692918,2.6698,187.37,187.32,2.6703]
[1736888693420,12.3171594,187.39,187.29,12.3171594]
[1736888693721,2.6696,187.38,187.33,2.6702]
[1736888694217,12.3171594,187.42,187.32,12.3171594]
[1736888694619,5.52,187.41,187.32,12.3171594]
[1736888696017,12.3171594,187.42,187.32,12.3171594]
[1736888696217,17.8371594,187.42,187.32,12.3171594]
[1736888696420,17.8371594,187.42,187.35,2.67]
[1736888697121,2.6694,187.39,187.32,12.3171594]
[1736888697315,17.8371594,187.42,187.32,12.3171594]
[1736888697926,2.6696,187.38,187.33,2.6701]
[1736888698317,2.6696,187.38,187.32,12.3171594]
[1736888698517,17.8371594,187.42,187.32,12.3171594]
[1736888698719,2.6694,187.39,187.32,12.3171594]
[1736888699123,2.6694,187.39,187.34,2.67]
[1736888699319,2.6696,187.38,187.32,12.3171594]
[1736888699918,2.6696,187.38,187.34,2.6701]
[1736888700317,17.8371594,187.42,187.32,12.3171594]
[1736888700523,17.8371594,187.42,187.32,2.6704]
[1736888700720,17.8371594,187.42,187.29,12.3171594]
[1736888700922,2.6698,187.37,187.29,12.3171594]
[1736888701117,17.8371594,187.42,187.29,12.3171594]
[1736888702625,2.6695,187.39,187.35,2.6699]
[1736888703021,17.8371594,187.42,187.32,12.3171594]
[1736888703216,17.8371594,187.42,187.34,2.67]
[1736888703623,2.6698,187.37,187.33,2.6702]
[1736888703819,17.8371594,187.42,187.33,2.6702]
[1736888704220,2.6693,187.4,187.33,2.6702]
[1736888704421,17.8371594,187.42,187.33,2.6702]
[1736888704726,17.8371594,187.42,187.29,12.3171594]
[1736888705530,2.6695,187.39,187.29,12.3171594]
[1736888705720,17.8371594,187.42,187.29,12.3171594]
[1736888705917,12.3171594,187.39,187.28,1.6866]
[1736888706122,12.3171594,187.39,187.24,30.72064529]
[1736888706327,12.3171594,187.39,187.26,12.3171594]
[1736888706826,2.67,187.35,187.26,12.3171594]
[1736888707419,2.67,187.35,187.3,2.6706]
[1736888707821,12.3171594,187.39,187.26,12.3171594]
[1736888708023,2.6698,187.36,187.26,12.3171594]
[1736888708326,12.3171594,187.39,187.26,12.3171594]
[1736888708531,2.6699,187.36,187.3,2.6707]
[1736888708725,12.3171594,187.39,187.3,2.6707]
[1736888709026,2.6702,187.34,187.3,2.6707]
[1736888709324,12.3171594,187.39,187.3,2.6707]
[1736888709825,12.3171594,187.39,187.29,2.6708]
[1736888710024,12.3171594,187.36,187.24,1.5666]
[1736888710229,2.6708,187.3,187.24,1.5666]
[1736888710428,10.4025,187.35,187.27,2.6711]
[1736888710630,2.6707,187.3,187.24,1.5666]
[1736888711327,2.6707,187.3,187.26,2.6711]
[1736888711526,2.671,187.28,187.23,12.3171594]
[1736888711719,12.3171594,187.33,187.22,6.48494948]
[1736888711919,12.3171594,187.33,187.23,2.6716]
[1736888712120,2.671,187.28,187.22,6.48494948]
[1736888712524,2.671,187.28,187.24,2.6714]
[1736888714026,12.3171594,187.33,187.22,6.48494948]
[1736888714331,2.6707,187.3,187.25,2.6714]
[1736888715527,2.6707,187.3,187.26,2.6712]
[1736888716039,2.6708,187.29,187.26,2.6712]
[1736888718032,2.671,187.28,187.26,2.6712]
[1736888718733,2.671,187.28,187.25,2.6713]
[1736888719233,12.3171594,187.33,187.26,2.6711]
[1736888719828,12.3171594,187.33,187.22,6.48494948]
[1736888720030,12.3171594,187.3,187.2,12.3171594]
[1736888720432,12.3171594,187.27,187.2,2.6721]
[1736888720738,17.8371594,187.27,187.16,10.61891132]
[1736888720929,2.6719,187.22,187.18,2.6723]
[1736888721329,2.6719,187.22,187.14,12.3171594]
[1736888721525,2.6719,187.22,187.18,2.6723]
[1736888721729,12.3171594,187.24,187.14,12.3171594]
[1736888721934,2.672,187.21,187.14,12.3171594]
[1736888722137,12.3171594,187.24,187.18,2.6723]
[1736888722434,12.3171594,187.24,187.14,12.3171594]
[1736888722734,12.3171594,187.21,187.11,100.15210093]
[1736888722935,2.6725,187.18,187.11,100.15210093]
[1736888723231,2.6725,187.18,187.13,2.6731]
[1736888725639,2.6727,187.17,187.12,2.6732]
[1736888726138,5.52,187.2,187.11,100.15210093]
[1736888726341,2.6724,187.19,187.15,2.6728]
[1736888726538,5.52,187.2,187.12,12.3171594]
[1736888727339,2.6724,187.18,187.14,2.6729]
[1736888727539,2.6724,187.18,187.12,12.3171594]
[1736888727842,2.6724,187.18,187.14,2.6728]
[1736888728037,2.6723,187.19,187.12,12.3171594]
[1736888728237,17.8371594,187.23,187.12,12.3171594]
[1736888729242,2.6721,187.21,187.17,2.6724]
[1736888733047,2.6721,187.2,187.17,2.6724]
[1736888733950,2.6719,187.22,187.19,2.6722]
[1736888734447,17.8371594,187.23,187.12,12.3171594]
[1736888735238,2.6721,187.2,187.12,12.3171594]
[1736888735943,17.8371594,187.23,187.12,12.3171594]
[1736888736951,2.672,187.21,187.17,2.6725]
[1736888737353,17.2909594,187.26,187.15,12.3171594]
[1736888737553,2.6717,187.23,187.19,2.6721]
[1736888737742,2.6717,187.23,187.15,12.3171594]
[1736888738148,5.52,187.24,187.15,12.3171594]
[1736888738753,2.6722,187.2,187.16,2.6726]
[1736888739051,2.6722,187.2,187.15,12.3171594]
[1736888739256,5.52,187.24,187.15,12.3171594]
[1736888739457,2.672,187.21,187.17,2.6724]
[1736888739756,5.52,187.25,187.15,12.3171594]
[1736888740452,2.6717,187.23,187.19,2.6721]
[1736888740852,2.6717,187.23,187.15,12.3171594]
[1736888741053,2.6717,187.23,187.2,2.672]
[1736888741450,5.52,187.25,187.15,12.3171594]
[1736888741654,2.6716,187.24,187.21,2.6719]
[1736888741850,5.52,187.25,187.21,2.6719]
[1736888742058,5.52,187.27,187.18,12.3171594]
[1736888742250,2.6713,187.26,187.18,12.3171594]
[1736888743158,2.6713,187.26,187.22,2.6717]
[1736888743458,2.6712,187.27,187.18,12.3171594]
[1736888744160,2.6712,187.27,187.24,2.6715]
[1736888744360,2.6712,187.27,187.18,12.3171594]
[1736888745061,2.6712,187.27,187.23,2.6716]
[1736888747363,2.6712,187.27,187.23,10.56205511]
[1736888747559,5.52,187.28,187.23,7.89045511]
[1736888747760,2.6713,187.26,187.23,7.89045511]
[1736888748564,2.6713,187.26,187.22,2.6718]
[1736888749360,7.89045511,187.27,187.21,7.89045511]
[1736888749665,7.89045511,187.27,187.17,3.3467]
[1736888749666,5.52,187.28,187.23,7.89045511]
[1736888749861,10.56165511,187.27,187.23,2.6716]
[1736888750062,7.89045511,187.25,187.21,7.89045511]
[1736888750255,7.89045511,187.25,187.19,7.89045511]
[1736888750655,10.56185511,187.25,187.21,2.6718]
[1736888751667,10.56185511,187.25,187.19,7.89045511]
[1736888751868,2.6713,187.26,187.22,2.6717]
[1736888753762,2.6714,187.25,187.22,2.6717]
[1736888755270,2.6713,187.26,187.23,2.6716]
[1736888756067,7.89045511,187.27,187.21,7.89045511]
[1736888756268,7.89045511,187.27,187.25,2.6714]
[1736888757173,10.56155511,187.27,187.24,2.6715]
[1736888758370,10.56155511,187.27,187.25,2.6714]
[1736888759168,7.89045511,187.27,187.25,2.6714]
[1736888759670,5.3394,187.38,187.21,7.89045511]
[1736888759871,7.89045511,187.29,187.27,2.671]
[1736888760168,7.89045511,187.29,187.23,7.89045511]
[1736888760169,13.41045511,187.31,187.25,7.89045511]
[1736888760471,5.52,187.32,187.3,2.6705]
[1736888760763,10.56085511,187.33,187.3,2.6705]
[1736888761364,2.6704,187.33,187.3,2.6705]
[1736888762267,5.52,187.34,187.24,12.32334168]
[1736888762570,2.6704,187.32,187.29,2.6708]
[1736888763871,2.6704,187.32,187.3,2.6707]
[1736888764374,2.6704,187.32,187.29,2.6707]
[1736888765970,5.52,187.34,187.28,2.6709]
[1736888765971,2.6705,187.31,187.28,2.6709]
[1736888766270,2.6705,187.31,187.24,12.32334168]
[1736888766472,2.6705,187.31,187.26,2.6712]
[1736888766667,2.6705,187.31,187.24,12.32334168]
[1736888767071,2.6704,187.32,187.28,2.6708]
[1736888767467,2.6704,187.32,187.24,12.32334168]
[1736888767668,2.6704,187.32,187.28,2.6708]
[1736888767869,2.6704,187.32,187.24,12.32334168]
[1736888768570,2.6701,187.34,187.31,2.6705]
[1736888768873,5.52,187.36,187.31,2.6705]
[1736888769577,12.32334168,187.38,187.27,12.32334168]
[1736888769774,5.52,187.37,187.32,2.6703]
[1736888770174,5.52,187.37,187.31,2.6705]
[1736888770175,2.67,187.35,187.31,2.6705]
[1736888771272,12.32334168,187.35,187.29,2.6707]
[1736888771471,12.32334168,187.35,187.24,12.32334168]
[1736888772072,195.0,187.36,187.27,12.32334168]
[1736888773079,195.0,187.36,187.33,2.6701]
[1736888774181,195.0,187.36,187.27,12.32334168]
[1736888774583,99.98,187.45,187.3,12.32334168]
[1736888774776,6.4174836,187.44,187.36,2.6698]
[1736888774976,13.22082528,187.43,187.32,12.32334168]
[1736888775171,12.32334168,187.43,187.32,12.32334168]
[1736888775478,2.6693,187.4,187.37,2.6697]
[1736888775676,12.32334168,187.47,187.32,12.32334168]
[1736888775877,6.41727237,187.46,187.35,12.32334168]
[1736888776081,2.6689,187.43,187.39,2.6693]
[1736888776577,2.6688,187.43,187.4,2.6692]
[1736888776782,5.52,187.44,187.35,12.32334168]
[1736888777382,2.669,187.42,187.38,2.6694]
[1736888777579,5.52,187.44,187.38,2.6694]
[1736888777779,12.32334168,187.41,187.32,12.32334168]
[1736888777982,12.32334168,187.41,187.34,2.6701]
[1736888778485,12.32334168,187.41,187.29,12.32334168]
[1736888778687,2.6695,187.39,187.35,2.6699]
[1736888779185,12.32334168,187.41,187.29,12.32334168]
[1736888780188,2.6698,187.37,187.33,2.6701]
[1736888782190,12.32334168,187.41,187.29,12.32334168]
[1736888782393,2.6696,187.38,187.34,2.6701]
[1736888783493,7.88292425,187.37,187.34,2.6701]
[1736888783790,10.55262425,187.37,187.34,2.6701]
[1736888784382,10.55262425,187.37,187.33,2.6702]
[1736888784791,10.55242425,187.39,187.32,7.88292425]
[1736888784993,7.88292425,187.39,187.34,2.67]
[1736888785292,2.6695,187.38,187.34,2.67]
[1736888785793,7.88292425,187.39,187.32,7.88292425]
[1736888785986,7.88292425,187.39,187.34,7.88292425]
[1736888786191,13.40292425,187.43,187.36,7.88292425]
[1736888786691,2.669,187.42,187.38,2.6694]
[1736888786892,7.88292425,187.43,187.38,7.88292425]
[1736888787794,10.55172425,187.43,187.4,2.6691]
[1736888787987,7.88292425,187.43,187.38,7.88292425]
[1736888788293,2.6692,187.41,187.37,2.6696]
[1736888788994,2.6693,187.4,187.37,2.6696]
[1736888790494,12.3120473,187.44,187.37,2.6696]
[1736888790690,2.6691,187.41,187.37,2.6696]
[1736888793291,2.6693,187.4,187.37,2.6696]
[1736888793490,5.52,187.43,187.37,2.6696]
[1736888794196,6.73,187.43,187.37,2.6696]
[1736888794394,6.73,187.43,187.32,12.3120473]
[1736888794592,6.73,187.43,187.35,2.6698]
[1736888794897,6.73,187.43,187.32,12.3120473]
[1736888796287,6.73,187.43,187.36,2.6697]
[1736888796493,6.73,187.43,187.32,12.3120473]
[1736888797398,2.6691,187.41,187.35,2.6699]
[1736888797598,2.6691,187.41,187.32,12.3120473]
[1736888798396,2.6691,187.41,187.37,2.6696]
[1736888800199,6.73,187.43,187.32,12.3120473]
[1736888800400,2.6695,187.38,187.32,12.3120473]
[1736888800598,12.3120473,187.42,187.32,12.3120473]
[1736888800794,12.3120473,187.42,187.29,12.3120473]
[1736888800994,12.3120473,187.42,187.34,2.6701]
[1736888800995,2.6698,187.37,187.34,2.6701]
[1736888801697,2.6698,187.37,187.29,12.3120473]
[1736888801895,2.6699,187.36,187.32,2.6703]
[1736888802095,12.3120473,187.39,187.29,12.3120473]
[1736888802301,12.3120473,187.42,187.29,12.3120473]
[1736888802699,2.6695,187.39,187.35,2.6699]
[1736888802898,12.3120473,187.42,187.35,2.6699]
[1736888803400,2.6692,187.41,187.37,2.6696]
[1736888803601,12.3120473,187.42,187.37,2.6696]
[1736888803997,6.73,187.43,187.32,12.3120473]
[1736888804601,2.6691,187.41,187.32,12.3120473]
[1736888805202,2.6691,187.41,187.37,2.6696]
[1736888805795,1.21,187.43,187.35,12.3120473]
[1736888806803,3.8789,187.43,187.39,2.6693]
[1736888807405,0.23,187.42,187.39,2.6693]
[1736888807810,2.6692,187.41,187.37,2.6697]
[1736888812411,3.8792,187.41,187.37,2.6697]
[1736888813917,3.8792,187.41,187.36,7.87877252]
[1736888814119,1.21,187.41,187.38,7.87877252]
[1736888814417,1.21,187.41,187.4,7.87877252]
[1736888816122,1.21,187.41,187.4,10.54797252]
[1736888826412,2.6678,187.5,187.46,2.6683]
[1736888826611,7.87877252,187.51,187.45,7.87877252]
[1736888826825,1.7105,187.55,187.49,7.87877252]
[1736888827023,2.667,187.56,187.52,2.6675]
[1736888827722,2.6673,187.54,187.45,2.6684]
[1736888827919,7.87877252,187.55,187.41,3.1843]
[1736888827920,7.87877252,187.55,187.48,7.87877252]
[1736888828120,7.87877252,187.53,187.48,7.87877252]
[1736888828323,10.54627252,187.53,187.48,10.54677252]
[1736888828511,7.87877252,187.55,187.48,7.87877252]
[1736888828717,5.52,187.59,187.5,7.87877252]
[1736888828913,7.87877252,187.57,187.5,7.87877252]
[1736888829221,2.6671,187.56,187.51,2.6677]
[1736888829422,7.87877252,187.55,187.51,2.6677]
[1736888829915,10.54587252,187.55,187.51,2.6677]
[1736888832420,7.87877252,187.55,187.51,2.6677]
[1736888832617,7.87877252,187.53,187.45,7.87877252]
[1736888832824,7.87877252,187.51,187.45,7.87877252]
[1736888833026,10.54657252,187.51,187.45,7.87877252]
[1736888833716,10.54657252,187.51,187.46,2.6683]
[1736888833922,10.54657252,187.51,187.45,7.87877252]
[1736888834521,10.54657252,187.51,187.47,2.6682]
[1736888835120,2.668,187.49,187.45,10.54727252]
[1736888835327,7.87877252,187.49,187.43,7.87877252]
[1736888835628,2.6682,187.47,187.43,10.54747252]
[1736888837731,7.87877252,187.46,187.37,1.5848]
[1736888837926,7.87877252,187.44,187.39,7.87877252]
[1736888838326,7.87877252,187.44,187.37,7.87877252]
[1736888838520,7.87877252,187.42,187.37,7.87877252]
[1736888839727,5.52,187.45,187.37,7.87877252]
[1736888839930,7.87877252,187.44,187.37,7.87877252]
[1736888840531,2.6688,187.43,187.38,2.6694]
[1736888840932,2.6688,187.43,187.37,7.87877252]
[1736888841432,10.54747252,187.44,187.39,10.54807252]
[1736888842133,10.54747252,187.44,187.4,2.6692]
[1736888843138,8.1886,187.45,187.41,7.87877252]
[1736888843337,5.52,187.45,187.41,7.87877252]
[1736888843525,11.10307252,187.5,187.43,7.87877252]
[1736888843724,1.553,187.51,187.46,7.87877252]
[1736888843930,1.553,187.51,187.48,7.87877252]
[1736888844330,4.2207,187.51,187.48,10.54687252]
[1736888845330,4.2207,187.51,187.48,2.6681]
[1736888846540,2.6677,187.51,187.48,2.6681]
[1736888846833,7.87877252,187.52,187.46,7.87877252]
[1736888847034,8.1875,187.53,187.49,2.6679]
[1736888847940,5.52,187.53,187.48,7.87877252]
[1736888848141,5.52,187.53,187.51,2.6676]
[1736888849840,8.1874,187.53,187.5,10.54657252]
[1736888851233,8.1874,187.53,187.5,2.6678]
[1736888855249,2.6678,187.51,187.43,2.6687]
[1736888855547,5.52,187.53,187.4,4.8386]
[1736888856846,2.6681,187.49,187.43,2.6687]
[1736888857050,5.52,187.53,187.4,4.8386]
[1736888857445,2.6679,187.5,187.42,2.6688]
[1736888857640,5.52,187.53,187.42,2.6688]
[1736888858646,5.52,187.53,187.43,2.6688]
[1736888859940,2.6683,187.47,187.44,2.6687]
[1736888862353,2.6684,187.46,187.42,2.6688]
[1736888863155,5.52,187.53,187.4,3.1966]
[1736888863455,2.6687,187.44,187.4,2.6692]
[1736888863754,5.52,187.53,187.35,4.7812]
[1736888864058,0.89706513,187.52,187.41,2.669]
[1736888865155,2.6687,187.44,187.41,2.669]
[1736888865752,2.6686,187.45,187.41,2.669]
[1736888869958,2.6686,187.45,187.42,2.6689]
[1736888872458,1.6413,187.49,187.44,2.6687]
[1736888872659,1.6413,187.49,187.35,4.7812]
[1736888872961,2.6681,187.48,187.44,2.6686]
[1736888876060,4.3093,187.49,187.45,2.6685]
[1736888876363,1.6413,187.49,187.36,5.3395]
[1736888876556,1.6413,187.49,187.46,2.6683]
[1736888877162,11.4921,187.5,187.46,2.6683]
[1736888878457,11.4921,187.5,187.47,2.6682]
[1736888880358,8.8242,187.5,187.37,5.3393]